fUSD/lending_fUSD_20251201
["ID","MTS","AMOUNT","RATE_DAILY","PERIOD"]
[395279652,1764581440434,-500.0,0.00016367,2]
[395279653,1764581440443,-151.0,0.00016367,2]
[395279654,1764581440452,-500.0,0.00016367,2]
[395279655,1764581440464,-151.0,0.00016367,2]
[395279656,1764581440473,-906.0,0.00016367,2]
[395279657,1764581440483,-500.0,0.00016367,2]
[395279658,1764581440492,-151.0,0.00016367,2]
[395279659,1764581440501,-500.0,0.00016367,2]
[395279660,1764581440511,-151.0,0.00016367,2]
[395279661,1764581440520,-500.0,0.00016367,2]
[395279662,1764581440530,-151.0,0.00016367,2]
[395279663,1764581440539,-780.83383746,0.00016367,2]
[395279664,1764581440548,-500.0,0.00016367,2]
[395279665,1764581440557,-500.0,0.00016367,2]
[395279666,1764581440565,-151.0,0.00016367,2]
[395279667,1764581440574,-500.0,0.00016367,2]
[395279668,1764581440583,-151.0,0.00016367,2]
[395279669,1764581440592,-500.0,0.00016367,2]
[395279670,1764581440601,-151.0,0.00016367,2]
[395279671,1764581440610,-151.0,0.00016367,2]
[395279672,1764581440619,-500.0,0.00016367,2]
[395279673,1764581440628,-200.0,0.00016367,2]
[395279674,1764581440637,-151.0,0.00016367,2]
[395279675,1764581440646,-500.0,0.00016367,2]
[395279676,1764581440655,-10000.0,0.00016367,2]
[395279677,1764581440664,-151.0,0.00016367,2]
[395279678,1764581440677,-500.0,0.00016367,2]
[395279679,1764581440686,-1476.15946739,0.00016367,2]
[395279680,1764581440696,-500.0,0.00016367,2]
[395279681,1764581440706,-151.0,0.00016367,2]
[395279682,1764581440715,-500.0,0.00016367,2]
[395279683,1764581440724,-500.0,0.00016367,2]
[395279684,1764581440734,-500.0,0.00016367,2]
[395279685,1764581440743,-500.0,0.00016367,2]
[395279686,1764581440752,-500.0,0.00016367,2]
[395279687,1764581440761,-500.0,0.00016367,2]
[395279688,1764581440770,-500.0,0.00016367,2]
[395279689,1764581440779,-500.0,0.00016367,2]
[395279690,1764581440788,-500.0,0.00016367,2]
[395279691,1764581440799,-3000.0,0.00016367,2]
[395279692,1764581440809,-500.0,0.00016367,2]
[395279693,1764581440818,-3000.0,0.00016367,2]
[395279694,1764581440827,-500.0,0.00016367,2]
[395279695,1764581440836,-3000.0,0.00016367,2]
[395279696,1764581440845,-337.0016284,0.00016367,2]
[395279697,1764581440855,-3000.0,0.00016367,2]
[395279698,1764581440865,-3000.0,0.00016367,2]
[395279699,1764581440874,-3000.0,0.00016367,2]
[395279700,1764581440883,-632.91244134,0.00016367,2]
[395279701,1764581440893,-500.0,0.00016367,2]
[395279702,1764581440902,-442.71974365,0.00016367,2]
[395279703,1764581440911,-500.0,0.00016367,2]
[395279704,1764581440921,-500.0,0.00016367,2]
[395279705,1764581440932,-500.0,0.00016367,2]
[395279706,1764581440941,-500.0,0.00016367,2]
[395279707,1764581440950,-500.0,0.00016367,2]
[395279708,1764581440960,-500.0,0.00016367,2]
[395279709,1764581441285,-500.0,0.00016367,2]
[395279710,1764581441295,-500.0,0.00016367,2]
[395279711,1764581441305,-500.0,0.00016367,2]
[395279712,1764581441315,-500.0,0.00016367,2]
[395279713,1764581441324,-500.0,0.00016367,2]
[395279714,1764581441334,-500.0,0.00016367,2]
[395279715,1764581441344,-500.0,0.00016367,2]
[395279716,1764581441354,-500.0,0.00016367,2]
[395279717,1764581441364,-163.23046283,0.00016382,2]
[395279718,1764581441373,-779.0,0.0001639,2]
[395279719,1764581441387,-500.0,0.00016397,2]
[395279720,1764581441396,-1000.0,0.00016398,2]
[395279721,1764581441406,-1000.0,0.00016398,2]
[395279722,1764581441415,-217.00327303,0.00016398,2]
[395279723,1764581441425,-1000.0,0.00016398,2]
[395279724,1764581441435,-1000.0,0.00016398,2]
[395279725,1764581441444,-1000.0,0.00016398,2]
[395279726,1764581441455,-1000.0,0.00016398,2]
[395279727,1764581441466,-1443.14,0.00016404,2]
[395279728,1764581441476,-465.96204167,0.00016435,2]
[395279729,1764581441485,-500.0,0.00016438,2]
[395279730,1764581441495,-500.0,0.00016438,2]
[395279731,1764581441504,-500.0,0.00016438,2]
[395279732,1764581441513,-500.0,0.00016438,2]
[395279733,1764581441523,-500.0,0.00016438,2]
[395279734,1764581441532,-500.0,0.00016438,2]
[395279735,1764581441541,-500.0,0.00016438,2]
[395279736,1764581441550,-500.0,0.00016438,2]
[395279737,1764581441560,-500.0,0.00016438,2]
[395279738,1764581441570,-500.0,0.00016438,2]
[395279739,1764581441579,-500.0,0.00016438,2]
[395279740,1764581441589,-500.0,0.00016438,2]
[395279741,1764581441598,-500.0,0.00016438,2]
[395279742,1764581441607,-500.0,0.00016438,2]
[395279743,1764581441616,-368.60832612,0.00016438,2]
[395279744,1764581441626,-500.0,0.00016438,2]
[395279745,1764581441635,-500.0,0.00016438,2]
[395279746,1764581441644,-500.0,0.00016438,2]
[395279747,1764581441653,-800.0,0.00016438,2]
[395279748,1764581441662,-779.0,0.00016462,2]
[395279749,1764581441671,-163.23046283,0.00016465,2]
[395279750,1764581441680,-181.42963696,0.00016484,2]
[395279751,1764581441690,-163.23046283,0.00016549,2]
[395279752,1764581441699,-20384.11,0.00016609,2]
[395279753,1764581441708,-427.65493559,0.0001662,2]
[395279754,1764581441718,-163.23046283,0.00016633,2]
[395279755,1764581441727,-181.42963696,0.0001664,2]
[395279756,1764581441737,-163.23046283,0.00016716,2]
[395279757,1764581441746,-166.66,0.00016765,2]
[395279758,1764581441755,-181.42963696,0.00016796,2]
[395279759,1764581441764,-163.23046283,0.000168,2]
[395279760,1764581441773,-222.21181264,0.00016828,2]
[395279761,1764581441783,-500.0,0.0001683,2]
[395279762,1764581441793,-779.0,0.00016874,2]
[395279763,1764581441803,-163.23046283,0.00016883,2]
[395279764,1764581441812,-168.93306445,0.000169,2]
[395279765,1764581441821,-779.3771298,0.000169,2]
[395279766,1764581441831,-387.15925766,0.000169,2]
[395279767,1764581441840,-362.71470908,0.000169,2]
[395279768,1764581441850,-362.71470908,0.00016905,2]
[395279769,1764581441859,-362.71470908,0.00016909,2]
[395279770,1764581441870,-382.23915353,0.00016915,2]
[395279771,1764581441880,-388.10298294,0.00016946,2]
[395279772,1764581441890,-1308.25309898,0.00016946,2]
[395279773,1764581441900,-500.53815546,0.00016946,2]
[395279774,1764581441909,-1500.0,0.00016946,2]
[395279775,1764581441918,-1500.0,0.00016946,2]
[395279776,1764581441928,-1500.0,0.00016946,2]
[395279777,1764581441937,-181.42963696,0.00016952,2]
[395279778,1764581441946,-163.23046283,0.00016967,2]
[395279779,1764581441955,-429.14046169,0.0001699,2]
[395279780,1764581441964,-429.14046169,0.0001699,2]
[395279781,1764581441973,-429.14046169,0.0001699,2]
[395279782,1764581441982,-500.0,0.00016998,2]
[395279783,1764581441991,-500.0,0.00016999,2]
[395279784,1764581442000,-500.0,0.00016999,2]
[395279785,1764581442009,-500.0,0.00016999,2]
[395279786,1764581442018,-500.0,0.00016999,2]
[395279787,1764581442027,-500.0,0.00016999,2]
[395279788,1764581442036,-500.0,0.00016999,2]
[395279789,1764581442045,-500.0,0.00016999,2]
[395279790,1764581442054,-395.46189094,0.00016999,2]
[395279791,1764581442064,-500.0,0.00016999,2]
[395279792,1764581442073,-500.0,0.00016999,2]
[395279793,1764581442082,-500.0,0.00016999,2]
[395279794,1764581442092,-500.0,0.00016999,2]
[395279795,1764581442101,-500.0,0.00016999,2]
[395279796,1764581442110,-531.24,0.00016999,2]
[395279797,1764581442120,-300.0,0.00016999,2]
[395279798,1764581442129,-68994.95485219,0.00017,2]
[395279799,1764581442138,-2654330.19791124,0.00017,2]
[395279800,1764581442159,-5098.71469898,0.00017,2]
[395279801,1764581442170,-1100.00001,0.00017,2]
[395279802,1764581442180,-2450.03616794,0.00017,2]
[395279803,1764581442199,-1500.0,0.00017,2]
[395279804,1764581442214,-1670.25,0.00017,2]
[395279805,1764581442226,-2192.2203344,0.00017,2]
[395279806,1764581442237,-297.85955345,0.00017,2]
[395279807,1764581442256,-1644.76423121,0.00017,2]
[395279808,1764581442269,-591.566251,0.00017,2]
[395279809,1764581442280,-725.91197457,0.00017,2]
[395279810,1764581442291,-19900.270134,0.00017,2]
[395279816,1764581442963,-510.48085357,0.00017,2]
[395279817,1764581443017,-18082.7264643,0.00017,2]
[395279818,1764581443128,-65908.79841914,0.00017,2]
[395279819,1764581443140,-35197.35586617,0.00017,2]
[395279820,1764581443181,-97173.31408354,0.00017,2]
[395279821,1764581443193,-1973.68515686,0.00017,2]
[395279822,1764581443204,-30065.20521585,0.00017,2]
[395279835,1764581445893,-178.72,0.00015782,2]
[395279836,1764581445905,-230.6395,0.00016025,2]
[395279837,1764581445917,-134.3605,0.00016025,2]
[395279838,1764581445927,-190.6395,0.00016057,2]
[395279839,1764581445938,-97.3605,0.00016057,2]
[395279840,1764581445948,-333.02039385,0.00016438,2]
[395279841,1764581445959,-166.97960615,0.00016438,2]
[395279842,1764581445969,-250.0,0.00016438,2]
[395279843,1764581445978,-500.0,0.00016438,2]
[395279844,1764581445987,-500.0,0.00016438,2]
[395279845,1764581445997,-500.0,0.00016438,2]
[395279846,1764581446007,-526.19116338,0.00017,2]
[395279847,1764581446019,-4851.58115164,0.00017,2]
[395279848,1764581446029,-4324.31919412,0.00017,2]
[395279849,1764581446065,-1085.46076413,0.00017,2]
[395280001,1764581524756,1000.83,8.075e-05,2]
[395280002,1764581524940,1000.83,8.5e-05,2]
[395280003,1764581525152,1000.83,8.925e-05,2]
[395280004,1764581525365,1000.83,9.35e-05,2]
[395280005,1764581525562,1000.83,9.775e-05,2]
[395280006,1764581525750,1000.83,0.000102,2]
[395280007,1764581525951,1000.83,0.00010625,2]
[395280008,1764581526150,1000.83,0.0001105,2]
[395280009,1764581526398,1000.83,0.00011475,2]
[395280010,1764581526674,1000.83,0.000119,2]
[395280022,1764581711152,599.86117026,0.00025,120]
[395280042,1764582009514,-606.74813016,0.00012325,2]
[395280043,1764582014967,-394.08186984,0.00012325,2]
[395280088,1764582632045,-339.75260614,0.0001275,2]
[395280089,1764582632058,-661.07739386,0.0001275,2]
[395280090,1764582632068,-250.0,0.00012761,2]
[395280091,1764582632078,-173.7989835,0.00012773,2]
[395280092,1764582632088,-300.0,0.00012872,2]
[395280093,1764582632097,-83.79418342,0.00012872,2]
[395280094,1764582632120,-1116.20581658,0.00012872,2]
[395280095,1764582632130,-500.0,0.00012873,2]
[395280096,1764582632140,-500.0,0.00012873,2]
[395280097,1764582632150,-500.0,0.00012873,2]
[395280098,1764582632160,-500.0,0.00012873,2]
[395280099,1764582632170,-443.57242906,0.00012873,2]
[395280100,1764582632182,-500.0,0.00012873,2]
[395280101,1764582632191,-400.92,0.00012873,2]
[395280102,1764582632202,-250.0,0.00012998,2]
[395280103,1764582632212,-95.60173436,0.00013147,2]
[395280104,1764582632224,-305.31826564,0.00013147,2]
[395280105,1764582632234,-1000.83,0.00013175,2]
[395280106,1764582632244,-176.15705927,0.00013421,2]
[395280107,1764582632256,-323.84294073,0.00013421,2]
[395280108,1764582632266,-256.5176736,0.00013421,2]
[395280109,1764582632278,-243.4823264,0.00013421,2]
[395280110,1764582632288,-901.48126125,0.00013421,2]
[395280111,1764582632320,-98.51873875,0.00013421,2]
[395280112,1764582632330,-151.97166125,0.00013421,2]
[395280113,1764582632345,-330.50543153,0.00013421,2]
[395280114,1764582632354,-400.92,0.00013421,2]
[395280115,1764582632363,-25.28549516,0.00013598,2]
[395280116,1764582632376,-125.70450484,0.00013598,2]
[395280117,1764582632385,-1000.83,0.000136,2]
[395280118,1764582632395,-400.92,0.00013695,2]
[395280119,1764582632405,-166.66,0.00013699,2]
[395280120,1764582632415,-166.66,0.00013964,2]
[395280121,1764582632425,-150.0,0.00013967,2]
[395280122,1764582632434,-400.96,0.00013968,2]
[395280123,1764582632444,-1500.0,0.00013968,2]
[395280125,1764582632454,-250.0,0.00014025,2]
[395280127,1764582632464,-193.0,0.00014025,2]
[395280129,1764582632474,-300.0,0.00014025,2]
[395280130,1764582632484,-300.0,0.00014025,2]
[395280131,1764582632494,-300.0,0.00014025,2]
[395280132,1764582632504,-300.0,0.00014025,2]
[395280134,1764582632513,-300.0,0.00014025,2]
[395280136,1764582632523,-300.0,0.00014025,2]
[395280138,1764582632532,-300.0,0.00014025,2]
[395280140,1764582632542,-300.0,0.00014025,2]
[395280142,1764582632551,-195.0,0.00014025,2]
[395280144,1764582632562,-300.0,0.00014025,2]
[395280147,1764582632572,-364.34410567,0.00014025,2]
[395280148,1764582632582,-195.0,0.00014025,2]
[395280150,1764582632591,-195.0,0.00014025,2]
[395280152,1764582632602,-1000.83,0.00014025,2]
[395280154,1764582632611,-1801.0,0.00014112,2]
[395280156,1764582632622,-174.0,0.0001414,2]
[395280158,1764582632632,-480.0,0.00014159,2]
[395280160,1764582632642,-196.0,0.00014169,2]
[395280162,1764582632651,-166.66,0.00014229,2]
[395280164,1764582632661,-500.0,0.0001444,2]
[395280166,1764582632671,-500.0,0.0001444,2]
[395280168,1764582632680,-581.79967492,0.0001444,2]
[395280170,1764582632690,-200.0,0.00014441,2]
[395280172,1764582632699,-500.0,0.00014441,2]
[395280174,1764582632708,-151.0,0.00014441,2]
[395280176,1764582632718,-151.0,0.00014441,2]
[395280178,1764582632731,-151.0,0.00014441,2]
[395280180,1764582632741,-151.0,0.00014441,2]
[395280182,1764582632752,-151.0,0.00014441,2]
[395280185,1764582632766,-500.0,0.00014441,2]
[395280186,1764582632778,-151.0,0.00014441,2]
[395280188,1764582632787,-151.0,0.00014441,2]
[395280190,1764582632799,-500.0,0.00014441,2]
[395280192,1764582632810,-151.0,0.00014441,2]
[395280195,1764582632821,-500.0,0.00014441,2]
[395280197,1764582632834,-151.0,0.00014441,2]
[395280199,1764582632843,-500.0,0.00014441,2]
[395280201,1764582632852,-151.0,0.00014441,2]
[395280203,1764582632862,-500.0,0.00014441,2]
[395280205,1764582632872,-151.0,0.00014441,2]
[395280207,1764582632882,-500.0,0.00014441,2]
[395280209,1764582632892,-151.0,0.00014441,2]
[395280211,1764582632901,-500.0,0.00014441,2]
[395280213,1764582632911,-151.0,0.00014441,2]
[395280215,1764582632921,-500.0,0.00014441,2]
[395280217,1764582632930,-151.0,0.00014441,2]
[395280219,1764582632939,-500.0,0.00014441,2]
[395280221,1764582632949,-500.0,0.00014441,2]
[395280223,1764582632959,-500.0,0.00014441,2]
[395280225,1764582632968,-500.0,0.00014441,2]
[395280227,1764582632977,-500.0,0.00014441,2]
[395280229,1764582632986,-500.0,0.00014441,2]
[395280231,1764582632995,-1000.83,0.0001445,2]
[395280233,1764582633005,-166.66,0.00014494,2]
[395280235,1764582633014,-2000.0,0.00014516,2]
[395280237,1764582633023,-150.0,0.00014702,2]
[395280239,1764582633033,-166.66,0.00014759,2]
[395280241,1764582633042,-1000.83,0.00014875,2]
[395280243,1764582633051,-500.0,0.00014912,2]
[395280245,1764582633061,-166.66,0.00015024,2]
[395280247,1764582633070,-2000.0,0.00015064,2]
[395280249,1764582633079,-255.0,0.00015085,2]
[395280251,1764582633089,-150.0,0.00015288,2]
[395280253,1764582633098,-150.0,0.00015288,2]
[395280255,1764582633107,-150.0,0.00015288,2]
[395280257,1764582633117,-150.0,0.00015288,2]
[395280259,1764582633128,-150.0,0.00015288,2]
[395280261,1764582633137,-150.0,0.00015288,2]
[395280299,1764582633492,-150.0,0.00015288,2]
[395280301,1764582633505,-150.0,0.00015288,2]
[395280303,1764582633515,-150.0,0.00015288,2]
[395280305,1764582633524,-150.0,0.00015288,2]
[395280307,1764582633533,-150.0,0.00015288,2]
[395280309,1764582633543,-150.0,0.00015288,2]
[395280311,1764582633552,-150.0,0.00015288,2]
[395280313,1764582633562,-150.0,0.00015288,2]
[395280315,1764582633571,-150.0,0.00015288,2]
[395280317,1764582633580,-1000.83,0.00015299,2]
[395280319,1764582633589,-150.0,0.00015307,2]
[395280321,1764582633598,-150.0,0.00015315,2]
[395280323,1764582633607,-150.0,0.00015325,2]
[395280325,1764582633617,-150.0,0.00015326,2]
[395280327,1764582633627,-150.0,0.0001533,2]
[395280329,1764582633636,-150.0,0.00015335,2]
[395280331,1764582633646,-150.0,0.00015336,2]
[395280333,1764582633656,-150.0,0.00015342,2]
[395280335,1764582633665,-150.0,0.00015346,2]
[395280337,1764582633675,-150.0,0.00015362,2]
[395280339,1764582633684,-150.0,0.00015365,2]
[395280341,1764582633694,-150.0,0.00015369,2]
[395280343,1764582633703,-150.0,0.00015373,2]
[395280345,1764582633713,-150.0,0.00015373,2]
[395280347,1764582633722,-150.0,0.00015377,2]
[395280349,1764582633732,-150.0,0.00015382,2]
[395280351,1764582633742,-150.0,0.00015384,2]
[395280353,1764582633752,-150.0,0.00015385,2]
[395280355,1764582633766,-150.0,0.00015396,2]
[395280357,1764582633776,-150.0,0.00015398,2]
[395280359,1764582633786,-150.0,0.00015403,2]
[395280361,1764582633796,-150.0,0.00015409,2]
[395280363,1764582633806,-150.0,0.00015415,2]
[395280365,1764582633816,-150.0,0.00015422,2]
[395280367,1764582633826,-150.0,0.00015423,2]
[395280369,1764582633837,-150.0,0.00015429,2]
[395280371,1764582633846,-150.0,0.00015433,2]
[395280373,1764582633855,-150.0,0.00015435,2]
[395280375,1764582633866,-150.0,0.00015442,2]
[395280377,1764582633877,-150.0,0.00015449,2]
[395280379,1764582633887,-150.0,0.00015458,2]
[395280381,1764582633896,-150.0,0.00015458,2]
[395280383,1764582633905,-150.0,0.00015461,2]
[395280385,1764582633914,-150.0,0.00015466,2]
[395280387,1764582633924,-150.0,0.00015472,2]
[395280389,1764582633933,-150.0,0.00015476,2]
[395280391,1764582633942,-150.0,0.00015476,2]
[395280393,1764582633952,-150.0,0.00015476,2]
[395280395,1764582633961,-150.0,0.00015481,2]
[395280397,1764582633971,-150.0,0.00015482,2]
[395280399,1764582633980,-150.0,0.000155,2]
[395280401,1764582633989,-150.0,0.000155,2]
[395280403,1764582634000,-150.0,0.00015503,2]
[395280405,1764582634011,-150.0,0.00015509,2]
[395280407,1764582634020,-150.0,0.00015519,2]
[395280409,1764582634029,-150.0,0.00015524,2]
[395280411,1764582634039,-150.0,0.0001553,2]
[395280413,1764582634048,-150.0,0.0001553,2]
[395280415,1764582634057,-150.0,0.0001553,2]
[395280417,1764582634066,-150.0,0.00015539,2]
[395280419,1764582634075,-150.0,0.00015542,2]
[395280421,1764582634085,-150.0,0.00015542,2]
[395280423,1764582634095,-150.0,0.00015546,2]
[395280425,1764582634104,-150.0,0.00015556,2]
[395280427,1764582634114,-150.0,0.00015557,2]
[395280429,1764582634123,-150.0,0.00015558,2]
[395280431,1764582634132,-150.0,0.00015571,2]
[395280433,1764582634142,-150.0,0.00015577,2]
[395280435,1764582634151,-150.0,0.00015579,2]
[395280437,1764582634161,-150.0,0.00015583,2]
[395280439,1764582634171,-150.0,0.00015584,2]
[395280441,1764582634180,-150.0,0.00015585,2]
[395280443,1764582634190,-150.0,0.00015597,2]
[395280445,1764582634201,-150.0,0.00015611,2]
[395280447,1764582634211,-150.0,0.00015616,2]
[395280449,1764582634221,-150.0,0.00015618,2]
[395280451,1764582634231,-150.0,0.0001562,2]
[395280453,1764582634241,-150.0,0.00015627,2]
[395280456,1764582634251,-150.0,0.00015627,2]
[395280458,1764582634261,-150.0,0.00015627,2]
[395280459,1764582634271,-150.0,0.00015627,2]
[395280461,1764582634281,-150.0,0.00015635,2]
[395280463,1764582634290,-150.0,0.00015638,2]
[395280465,1764582634300,-150.0,0.00015645,2]
[395280467,1764582634310,-150.0,0.00015652,2]
[395280470,1764582634320,-150.0,0.00015654,2]
[395280472,1764582634330,-150.0,0.00015657,2]
[395280474,1764582634340,-1000.0,0.00015664,2]
[395280476,1764582634349,-150.0,0.00015665,2]
[395280478,1764582634359,-150.0,0.00015665,2]
[395280479,1764582634368,-150.0,0.00015665,2]
[395280480,1764582634378,-150.0,0.0001567,2]
[395280481,1764582634388,-150.0,0.00015674,2]
[395280482,1764582634397,-150.0,0.00015676,2]
[395280483,1764582634406,-150.0,0.00015692,2]
[395280484,1764582634415,-150.0,0.00015693,2]
[395280485,1764582634425,-150.0,0.00015694,2]
[395280486,1764582634434,-150.0,0.00015712,2]
[395280487,1764582634443,-150.0,0.00015712,2]
[395280488,1764582634452,-150.0,0.00015712,2]
[395280489,1764582634461,-150.0,0.00015712,2]
[395280490,1764582634471,-150.0,0.00015712,2]
[395280491,1764582634480,-150.0,0.00015719,2]
[395280492,1764582634489,-150.0,0.00015724,2]
[395280493,1764582634498,-1000.83,0.00015724,2]
[395280494,1764582634507,-150.0,0.00015731,2]
[395280495,1764582634516,-150.0,0.00015732,2]
[395280496,1764582634525,-150.0,0.00015735,2]
[395280497,1764582634535,-150.0,0.00015746,2]
[395280498,1764582634544,-150.0,0.00015751,2]
[395280499,1764582634554,-150.0,0.00015755,2]
[395280501,1764582634563,-150.0,0.0001576,2]
[395280503,1764582634573,-150.0,0.00015768,2]
[395280505,1764582634583,-150.0,0.0001577,2]
[395280507,1764582634593,-150.0,0.00015773,2]
[395280509,1764582634602,-150.0,0.00015773,2]
[395280511,1764582634611,-150.0,0.00015773,2]
[395280512,1764582634621,-150.0,0.0001579,2]
[395280514,1764582634631,-150.0,0.00015797,2]
[395280516,1764582634641,-150.0,0.00015797,2]
[395280518,1764582634651,-150.0,0.000158,2]
[395280520,1764582634660,-150.0,0.00015805,2]
[395280522,1764582634670,-150.0,0.00015807,2]
[395280524,1764582634680,-150.0,0.00015809,2]
[395280526,1764582634689,-150.0,0.00015822,2]
[395280528,1764582634700,-150.0,0.00015824,2]
[395280530,1764582634709,-150.0,0.00015827,2]
[395280532,1764582634720,-150.0,0.00015828,2]
[395280534,1764582634729,-150.0,0.0001584,2]
[395280536,1764582634739,-150.0,0.00015842,2]
[395280538,1764582634748,-150.0,0.00015847,2]
[395280540,1764582634762,-500.0,0.0001585,2]
[395280542,1764582634772,-500.0,0.0001585,2]
[395280544,1764582634781,-502.39177324,0.0001585,2]
[395280546,1764582634791,-500.0,0.0001585,2]
[395280548,1764582634802,-500.0,0.0001585,2]
[395280550,1764582634811,-500.0,0.0001585,2]
[395280552,1764582634820,-500.0,0.0001585,2]
[395280554,1764582634831,-500.0,0.0001585,2]
[395280556,1764582634840,-501.74534178,0.0001585,2]
[395280558,1764582634849,-500.0,0.0001585,2]
[395280560,1764582634858,-503.22829539,0.0001585,2]
[395280562,1764582634867,-500.0,0.0001585,2]
[395280564,1764582634877,-500.0,0.0001585,2]
[395280566,1764582634886,-183.87070732,0.0001585,2]
[395280568,1764582634896,-502.46810807,0.0001585,2]
[395280570,1764582634905,-500.0,0.0001585,2]
[395280572,1764582634914,-502.99679593,0.0001585,2]
[395280574,1764582634923,-500.0,0.0001585,2]
[395280576,1764582634933,-500.0,0.0001585,2]
[395280578,1764582634942,-500.0,0.0001585,2]
[395280580,1764582634951,-161.77823091,0.0001585,2]
[395280582,1764582634961,-500.0,0.0001585,2]
[395280584,1764582634970,-500.40328974,0.0001585,2]
[395280586,1764582634980,-500.0,0.0001585,2]
[395280588,1764582634989,-500.0,0.0001585,2]
[395280590,1764582634998,-595.00784422,0.0001585,2]
[395280592,1764582635008,-160.09574989,0.0001585,2]
[395280594,1764582635018,-500.0,0.0001585,2]
[395280596,1764582635028,-601.63877075,0.0001585,2]
[395280598,1764582635037,-500.0,0.0001585,2]
[395280600,1764582635046,-500.0,0.0001585,2]
[395280602,1764582635055,-500.0,0.0001585,2]
[395280604,1764582635065,-500.0,0.0001585,2]
[395280606,1764582635075,-500.0,0.0001585,2]
[395280608,1764582635084,-500.0,0.0001585,2]
[395280610,1764582635093,-500.0,0.0001585,2]
[395280612,1764582635102,-165.06363794,0.0001585,2]
[395280614,1764582635112,-502.43978726,0.0001585,2]
[395280616,1764582635121,-150.0,0.00015854,2]
[395280618,1764582635131,-150.0,0.00015854,2]
[395280620,1764582635140,-150.0,0.00015854,2]
[395280622,1764582635149,-150.0,0.00015854,2]
[395280624,1764582635158,-323.32548521,0.00015859,2]
[395280626,1764582635167,-150.0,0.00015867,2]
[395280628,1764582635176,-150.0,0.0001587,2]
[395280630,1764582635186,-150.0,0.00015878,2]
[395280632,1764582635196,-142.08022359,0.00015881,2]
[395280717,1764582635992,-7.91977641,0.00015881,2]
[395280719,1764582636002,-150.0,0.00015882,2]
[395280721,1764582636012,-150.0,0.00015882,2]
[395280723,1764582636021,-150.0,0.00015886,2]
[395280725,1764582636031,-15.40022359,0.00015894,2]
[395280728,1764582636381,-500.0,0.0001585,2]
[395280729,1764582636390,-134.59977641,0.00015894,2]
[395280730,1764582636399,-250.0,0.000159,2]
[395280731,1764582636408,-150.0,0.00015901,2]
[395280732,1764582636418,-150.0,0.00015905,2]
[395280733,1764582636427,-150.0,0.00015908,2]
[395280734,1764582636437,-150.0,0.00015913,2]
[395280735,1764582636446,-150.0,0.00015915,2]
[395280736,1764582636455,-150.0,0.00015919,2]
[395280737,1764582636465,-150.0,0.00015925,2]
[395280738,1764582636475,-150.0,0.00015925,2]
[395280739,1764582636484,-150.0,0.00015935,2]
[395280740,1764582636494,-273.08,0.00015935,2]
[395280741,1764582636503,-150.0,0.00015944,2]
[395280742,1764582636513,-150.0,0.00015948,2]
[395280743,1764582636523,-150.0,0.00015952,2]
[395280744,1764582636533,-150.0,0.00015962,2]